bitfinex/quotes_BTCUSD_20240718
["timestamp","ask_amount","ask_price","bid_price","bid_amount"]
[1721274974836,1.54596974,64929.0,64928.0,0.00456524]
[1721274975054,1.69393611,64929.0,64928.0,0.00456524]
[1721274975472,1.55556669,64929.0,64928.0,0.00456524]
[1721274975950,1.70991626,64929.0,64928.0,0.00456524]
[1721274977605,1.75548224,64929.0,64928.0,0.00456524]
[1721274977719,1.70031931,64929.0,64928.0,0.00456524]
[1721274977926,1.87063721,64929.0,64928.0,0.00456524]
[1721274978126,1.75547813,64929.0,64928.0,0.00456524]
[1721274978331,1.87061844,64929.0,64928.0,0.00456524]
[1721274978733,1.83247813,64929.0,64928.0,0.00456524]
[1721274979848,1.67812856,64929.0,64928.0,0.00456524]
[1721274981086,1.62296974,64929.0,64928.0,0.00456524]
[1721274981348,1.67830454,64929.0,64928.0,0.00456524]
[1721274982167,1.64644054,64929.0,64928.0,0.00456524]
[1721274982383,1.71644054,64929.0,64928.0,0.00456524]
[1721274982558,1.60130454,64929.0,64928.0,0.00456524]
[1721274983013,1.67072383,64929.0,64928.0,0.00456524]
[1721274983213,1.8250734,64929.0,64928.0,0.00456524]
[1721274983504,1.70991646,64929.0,64928.0,0.00456524]
[1721274983935,1.55496689,64929.0,64928.0,0.00456524]
[1721274984142,1.55486689,64929.0,64928.0,0.00456524]
[1721274984356,0.03759623,64929.0,64928.0,0.15406524]
[1721274984794,0.181714,64929.0,64928.0,0.15693051]
[1721274985004,0.19100912,64929.0,64928.0,0.15693051]
[1721274985209,0.181414,64929.0,64928.0,0.15693051]
[1721274985434,0.181314,64929.0,64928.0,0.15693051]
[1721274985630,0.167314,64929.0,64928.0,0.15693051]
[1721274985775,0.166814,64929.0,64928.0,0.15693051]
[1721274985973,0.154014,64929.0,64928.0,0.15693051]
[1721274986174,0.153914,64929.0,64928.0,0.15693051]
[1721274986395,0.154814,64929.0,64928.0,0.15693051]
[1721274986606,0.154814,64929.0,64928.0,0.15406524]
[1721274986809,0.154814,64929.0,64928.0,0.15692337]
[1721274987031,0.155814,64929.0,64928.0,0.15692337]
[1721274989342,0.002,64929.0,64928.0,0.15692337]
[1721274990217,0.00284,64929.0,64928.0,0.15692337]
[1721274992645,0.00284,64929.0,64928.0,0.61897237]
[1721274993694,0.00284,64929.0,64928.0,0.92700537]
[1721274995654,0.00084,64929.0,64928.0,0.92700537]
[1721274996102,0.00184,64929.0,64928.0,0.93000537]
[1721274996748,0.00284,64929.0,64928.0,0.93000537]
[1721274998567,0.00284,64929.0,64928.0,0.92000537]
[1721275001586,0.00284,64929.0,64928.0,0.61197237]
[1721275012330,0.00284,64929.0,64928.0,0.30393937]
[1721275012533,0.00284,64929.0,64928.0,0.37393937]
[1721275015012,0.00284,64929.0,64928.0,0.00585813]
[1721275015228,0.526482,64929.0,64928.0,0.00585813]
[1721275015431,0.91051,64929.0,64928.0,0.00585813]
[1721275015641,0.95888861,64929.0,64928.0,0.003]
[1721275015852,0.91051,64929.0,64928.0,0.003]
[1721275016077,0.602482,64929.0,64928.0,0.003]
[1721275016296,0.601482,64929.0,64928.0,0.003]
[1721275016517,0.154021,64926.0,64925.0,0.009174]
[1721275016951,0.154021,64926.0,64925.0,0.01198686]
[1721275018984,0.156021,64926.0,64925.0,0.01498686]
[1721275019164,0.155021,64926.0,64925.0,0.01198686]
[1721275019728,0.154021,64926.0,64925.0,0.01498686]
[1721275019949,0.155021,64926.0,64925.0,0.01498686]
[1721275021017,0.155021,64926.0,64925.0,0.012174]
[1721275021018,0.463064,64926.0,64925.0,0.012174]
[1721275021252,0.850007,64926.0,64925.0,0.012174]
[1721275021467,0.912107,64926.0,64925.0,0.012174]
[1721275022298,0.603064,64926.0,64925.0,0.009174]
[1721275022620,0.603064,64926.0,64925.0,0.011174]
[1721275023056,1.0023002,64926.0,64925.0,0.009174]
[1721275023258,1.0023002,64926.0,64925.0,0.012174]
[1721275023458,1.63605113,64926.0,64925.0,0.012174]
[1721275023665,1.77517145,64926.0,64925.0,0.012174]
[1721275023879,1.65987182,64926.0,64925.0,0.012174]
[1721275024084,1.65987182,64926.0,64925.0,0.009174]
[1721275024299,1.75987182,64926.0,64925.0,0.009174]
[1721275025547,1.75987182,64926.0,64925.0,0.010174]
[1721275025750,1.75987182,64926.0,64925.0,0.009174]
[1721275026158,1.76687198,64926.0,64925.0,0.009174]
[1721275026779,2.07491498,64926.0,64925.0,0.009174]
[1721275031052,2.07491504,64926.0,64925.0,0.009174]
[1721275031627,1.98372184,64926.0,64925.0,0.009174]
[1721275032511,1.98372176,64926.0,64925.0,0.009174]
[1721275033133,1.9837218,64926.0,64925.0,0.009174]
[1721275033794,2.09897321,64926.0,64925.0,0.009174]
[1721275034039,1.79093021,64926.0,64925.0,0.009174]
[1721275034313,1.6756788,64926.0,64925.0,0.009174]
[1721275034771,1.83002837,64926.0,64925.0,0.009174]
[1721275034990,1.94527062,64926.0,64925.0,0.009174]
[1721275035242,1.83002837,64926.0,64925.0,0.009174]
[1721275035696,1.94525617,64926.0,64925.0,0.009174]
[1721275035906,1.94525608,64926.0,64925.0,0.009174]
[1721275036105,1.79090605,64926.0,64925.0,0.009174]
[1721275037045,1.67567858,64926.0,64925.0,0.009174]
[1721275037227,1.7908917,64926.0,64925.0,0.009174]
[1721275038040,1.79088457,64926.0,64925.0,0.009174]
[1721275038237,1.67567858,64926.0,64925.0,0.009174]
[1721275038471,1.79088457,64926.0,64925.0,0.009174]
[1721275038982,1.67567858,64926.0,64925.0,0.009174]
[1721275039181,1.79087617,64926.0,64925.0,0.009174]
[1721275039468,1.67567875,64926.0,64925.0,0.009174]
[1721275040026,1.79087617,64926.0,64925.0,0.009174]
[1721275040440,1.67567875,64926.0,64925.0,0.009174]
[1721275042112,1.53382157,64926.0,64925.0,0.009174]
[1721275042319,1.44167875,64926.0,64925.0,0.009174]
[1721275042921,1.44167828,64926.0,64925.0,0.009174]
[1721275043142,1.59602785,64926.0,64925.0,0.009174]
[1721275043639,1.6651334,64926.0,64925.0,0.009174]
[1721275044042,1.4416779,64926.0,64925.0,0.009174]
[1721275044981,1.51078345,64926.0,64925.0,0.009174]
[1721275045621,1.51078374,64926.0,64925.0,0.009174]
[1721275045828,1.44167819,64926.0,64925.0,0.009174]
[1721275046502,1.52017819,64926.0,64925.0,0.009174]
[1721275047045,1.64834587,64926.0,64925.0,0.009174]
[1721275047246,1.84932062,64926.0,64925.0,0.009174]
[1721275048772,1.73414638,64926.0,64925.0,0.009174]
[1721275048981,1.84934546,64926.0,64925.0,0.009174]
[1721275049199,1.73414638,64926.0,64925.0,0.009174]
[1721275049404,1.84934546,64926.0,64925.0,0.009174]
[1721275050305,1.55684246,64926.0,64925.0,0.009174]
[1721275050495,1.51080099,64926.0,64925.0,0.009174]
[1721275051126,1.11020799,64926.0,64925.0,0.009174]
[1721275051570,1.0410857,64926.0,64925.0,0.009174]
[1721275051816,1.11021666,64926.0,64925.0,0.009174]
[1721275052033,1.04108486,64926.0,64925.0,0.009174]
[1721275052255,1.11021868,64926.0,64925.0,0.009174]
[1721275052481,1.10062258,64926.0,64925.0,0.009174]
[1721275052704,1.11021882,64926.0,64925.0,0.009174]
[1721275052929,1.04108491,64926.0,64925.0,0.009174]
[1721275053192,1.11022239,64926.0,64925.0,0.009174]
[1721275053412,1.13326336,64926.0,64925.0,0.009174]
[1721275053865,1.11022895,64926.0,64925.0,0.009174]
[1721275054087,1.11022898,64926.0,64925.0,0.009174]
[1721275054355,1.04108494,64926.0,64925.0,0.009174]
[1721275054546,1.13326339,64926.0,64925.0,0.009174]
[1721275055025,0.57083865,64926.0,64925.0,0.009174]
[1721275055259,0.57083865,64926.0,64925.0,0.088774]
[1721275055260,0.4786602,64926.0,64925.0,0.088774]
[1721275055528,0.17061672,64926.0,64925.0,0.222474]
[1721275055757,0.161021,64926.0,64925.0,0.2253169]
[1721275056024,0.308865,64928.0,64925.0,0.2253169]
[1721275056025,0.00083,64928.0,64925.0,0.2253169]
[1721275056285,0.00083,64928.0,64927.0,0.298819]
[1721275056774,0.00083,64928.0,64927.0,0.30165478]
[1721275057463,0.00083,64928.0,64927.0,0.14763578]
[1721275059140,0.00083,64928.0,64927.0,0.15063578]
[1721275059367,0.00183,64928.0,64927.0,0.14763578]
[1721275059591,0.00183,64928.0,64927.0,0.15063578]
[1721275059592,0.00283,64928.0,64927.0,0.15063578]
[1721275060062,0.00283,64928.0,64927.0,0.61577258]
[1721275060527,0.00183,64928.0,64927.0,0.61577258]
[1721275060996,0.00283,64928.0,64927.0,0.61577258]
[1721275061610,0.00283,64928.0,64927.0,0.61269278]
[1721275062130,0.00283,64928.0,64927.0,0.30465478]
[1721275063147,0.00283,64928.0,64927.0,0.61269278]
[1721275064448,0.00283,64928.0,64927.0,0.15063578]
[1721275064649,0.00283,64928.0,64927.0,0.30465478]
[1721275066603,0.00283,64928.0,64927.0,0.15063578]
[1721275069960,0.00283,64928.0,64927.0,0.30465478]
[1721275070208,0.00283,64928.0,64927.0,0.61269278]
[1721275071231,0.00283,64928.0,64927.0,0.97073078]
[1721275071439,0.00283,64928.0,64927.0,1.14583078]
[1721275071865,0.00283,64928.0,64927.0,1.09583078]
[1721275072282,0.00083,64928.0,64927.0,1.09283078]
[1721275072688,0.00183,64928.0,64927.0,1.09583078]
[1721275073532,0.00083,64928.0,64927.0,1.60525052]
[1721275073742,0.00183,64928.0,64927.0,2.02028852]
[1721275073941,0.00183,64928.0,64927.0,2.14818897]
[1721275074155,0.00083,64928.0,64927.0,2.14118897]
[1721275074605,0.00183,64928.0,64927.0,2.14818897]
[1721275074861,0.00283,64928.0,64927.0,2.16218897]
[1721275075096,0.00183,64928.0,64927.0,2.10518897]
[1721275075274,0.00083,64928.0,64927.0,2.09118897]
[1721275075440,0.00283,64928.0,64927.0,2.16918897]
[1721275077609,0.00283,64928.0,64927.0,2.16917447]
[1721275077753,0.00283,64928.0,64927.0,2.11917447]
[1721275077959,0.00283,64928.0,64927.0,2.16917447]
[1721275078358,0.00283,64928.0,64927.0,2.11917447]
[1721275079386,0.00283,64928.0,64927.0,2.16917447]
[1721275079589,0.00283,64928.0,64927.0,2.11917447]
[1721275079797,0.00084,64929.0,64928.0,1.128115]
[1721275079995,0.46584271,64947.0,64946.0,0.592922]
[1721275079996,0.46304871,64947.0,64946.0,0.592922]
[1721275080200,0.46304871,64947.0,64946.0,0.92240374]
[1721275080399,0.1409,64961.0,64954.0,0.153955]
[1721275080557,0.002794,64960.0,64954.0,0.153955]
[1721275080758,0.13723,64955.0,64954.0,0.00273684]
[1721275080969,0.13723,64955.0,64950.0,0.153963]
[1721275081189,0.13723,64955.0,64946.0,0.307948]
[1721275081190,0.13723,64955.0,64954.0,0.00252632]
[1721275081387,0.13723,64955.0,64951.0,0.153961]
[1721275081843,0.13723,64955.0,64952.0,0.00252632]
[1721275083206,0.13723,64955.0,64954.0,0.004]
[1721275083794,0.13723,64955.0,64954.0,0.15648132]
[1721275083795,0.00083,64955.0,64954.0,0.15648132]
[1721275084136,0.00083,64955.0,64954.0,0.00252632]
[1721275084333,0.00083,64955.0,64953.0,0.153956]
[1721275084543,0.00083,64955.0,64954.0,0.15648132]
[1721275084968,0.00083,64955.0,64954.0,0.16048132]
[1721275085488,0.00083,64955.0,64954.0,0.15648132]
[1721275086243,0.00083,64955.0,64954.0,0.16048132]
[1721275086451,0.00083,64955.0,64954.0,0.16348132]
[1721275086659,0.00083,64955.0,64954.0,0.00952632]
[1721275087714,0.00083,64955.0,64954.0,0.16348132]
[1721275090713,0.00083,64955.0,64954.0,0.16656]
[1721275090886,0.00083,64955.0,64954.0,0.47447]
[1721275091299,0.00083,64955.0,64954.0,0.53777]
[1721275091496,0.00083,64955.0,64954.0,0.61707]
[1721275091867,0.00083,64955.0,64954.0,0.84568]
[1721275092131,0.00083,64955.0,64954.0,0.92510132]
[1721275092546,0.00083,64955.0,64954.0,0.92110132]
[1721275092751,0.00083,64955.0,64954.0,1.28801132]
[1721275092960,0.00083,64955.0,64954.0,1.23801132]
[1721275093161,0.00083,64955.0,64954.0,1.22601132]
[1721275093440,0.00183,64955.0,64954.0,1.23501132]
[1721275093822,0.00083,64955.0,64954.0,1.22601132]
[1721275094249,0.00083,64955.0,64954.0,0.84660132]
[1721275094250,0.00183,64955.0,64954.0,0.84660132]
[1721275094449,0.00183,64955.0,64954.0,0.79430132]
[1721275100668,0.00183,64955.0,64954.0,0.79430132]
[1721275102700,0.00183,64955.0,64954.0,0.92215133]
[1721275102961,0.00183,64955.0,64954.0,0.79430132]
[1721275103224,0.00183,64955.0,64954.0,0.92215132]
[1721275105054,0.14323,64955.0,64954.0,0.61424132]
[1721275105456,0.00183,64955.0,64954.0,0.92215132]
[1721275105661,0.00183,64955.0,64954.0,0.97215132]
[1721275106059,0.00183,64955.0,64954.0,0.92215132]
[1721275106464,0.00183,64955.0,64954.0,0.79430132]
[1721275106642,0.06553,64955.0,64954.0,0.68424241]
[1721275106852,0.06553,64955.0,64954.0,0.55639132]
[1721275107216,0.14323,64955.0,64954.0,0.68424546]
[1721275107921,0.00183,64955.0,64954.0,0.99215546]
[1721275108258,0.00183,64955.0,64954.0,1.05395546]
[1721275108465,0.00183,64955.0,64954.0,1.36186546]
[1721275108643,0.00183,64955.0,64954.0,1.41186546]
[1721275109794,0.00183,64955.0,64954.0,1.30006413]
[1721275110875,0.06743,64955.0,64954.0,1.30006413]
[1721275111218,0.14393,64955.0,64954.0,1.30006413]
[1721275111591,0.07833,64955.0,64954.0,1.30006413]
[1721275112135,0.00183,64955.0,64954.0,1.30006413]
[1721275114043,0.00183,64955.0,64954.0,0.99215413]
[1721275114242,0.298282,64955.0,64954.0,0.15237913]
[1721275116031,0.06,64953.0,64949.0,0.153966]
[1721275116158,0.0765,64952.0,64950.0,0.00258146]
[1721275116357,0.06,64951.0,64950.0,0.00258146]
[1721275116581,0.1365,64951.0,64950.0,0.00258146]
[1721275117652,0.1375,64951.0,64950.0,0.01158146]
[1721275118029,0.1375,64951.0,64950.0,0.01858146]
[1721275118274,0.1375,64951.0,64950.0,0.009]
[1721275118275,0.291462,64951.0,64950.0,0.009]
[1721275118783,0.291462,64951.0,64950.0,0.01158817]
[1721275119158,0.291462,64951.0,64950.0,0.02058817]
[1721275121024,0.90731,64951.0,64950.0,0.018]
[1721275122007,0.90731,64951.0,64950.0,0.009]
[1721275122437,0.95335951,64951.0,64950.0,0.009]
[1721275122858,0.95335951,64951.0,64943.0,0.466]
[1721275122859,0.1435,64945.0,64943.0,0.466]
[1721275123263,0.1435,64945.0,64944.0,0.00259009]
[1721275124039,0.297476,64945.0,64944.0,0.00259009]
[1721275124447,0.298476,64945.0,64944.0,0.01159009]
[1721275124686,0.298476,64945.0,64944.0,0.009]
[1721275125237,0.298476,64945.0,64944.0,0.01159009]
[1721275125795,0.299476,64945.0,64944.0,0.018]
[1721275126020,0.299476,64945.0,64944.0,0.02041208]
[1721275127397,0.299476,64945.0,64944.0,0.018]
[1721275129312,0.1455,64945.0,64944.0,0.018]
[1721275129715,0.1455,64945.0,64944.0,0.02041208]
[1721275132645,0.002,64945.0,64944.0,0.48234708]
[1721275132845,0.002,64945.0,64944.0,0.93690408]
[1721275134012,0.002,64945.0,64944.0,1.57711145]
[1721275134219,0.002,64945.0,64944.0,1.44924282]
[1721275134575,0.002,64945.0,64944.0,1.57711156]
[1721275135390,0.002,64945.0,64944.0,1.52711156]
[1721275135814,0.002,64945.0,64944.0,1.57711156]
[1721275137691,0.002,64945.0,64944.0,1.88506856]
[1721275137900,0.002,64945.0,64944.0,1.98506856]
[1721275138743,0.002,64945.0,64944.0,1.84819982]
[1721275138744,0.001,64945.0,64944.0,1.84819982]
[1721275138943,0.001,64945.0,64944.0,1.97605876]
[1721275139165,0.001,64945.0,64944.0,1.99005876]
[1721275139789,0.00083,64955.0,64954.0,0.769775]
[1721275139999,0.00083,64955.0,64954.0,0.92415674]
[1721275140221,0.13773,64955.0,64954.0,0.92655935]
[1721275141343,0.07653,64955.0,64954.0,0.92655935]
[1721275141555,0.00083,64955.0,64954.0,0.93655935]
[1721275142347,0.00083,64955.0,64954.0,0.94755935]
[1721275142879,0.00083,64955.0,64954.0,0.79317761]
[1721275143121,0.08233,64955.0,64954.0,0.17735761]
[1721275143564,0.00083,64955.0,64954.0,0.48526761]
[1721275143767,0.00083,64955.0,64954.0,0.94067761]
[1721275143996,0.00083,64955.0,64954.0,0.85857761]
[1721275144192,0.00083,64955.0,64954.0,0.79317761]
[1721275146732,0.00083,64955.0,64954.0,0.79312761]
[1721275150400,0.00083,64955.0,64954.0,0.86312761]
[1721275152762,0.08143,64955.0,64954.0,0.86312761]
[1721275152962,0.14413,64955.0,64954.0,0.86312761]
[1721275155572,0.14413,64955.0,64954.0,0.55521761]
[1721275155738,0.14413,64955.0,64954.0,0.86312761]
[1721275156170,0.14413,64955.0,64954.0,0.55521761]
[1721275156396,0.14413,64955.0,64954.0,0.17730761]
[1721275156527,0.14413,64955.0,64954.0,0.24735761]
[1721275162558,0.14413,64955.0,64954.0,0.37521158]
[1721275163954,0.14413,64955.0,64954.0,0.37521365]
[1721275165356,0.14413,64955.0,64954.0,0.99103365]
[1721275167203,0.14413,64955.0,64954.0,0.99103338]
[1721275167773,0.08143,64955.0,64954.0,0.99103338]
[1721275170520,0.08143,64955.0,64954.0,0.99103336]
[1721275173593,0.08143,64955.0,64954.0,0.86317761]
[1721275173798,0.08143,64955.0,64954.0,0.99103336]
[1721275176977,0.08143,64955.0,64954.0,0.86317761]
[1721275177152,0.08143,64955.0,64954.0,0.99103336]
[1721275179342,0.14473,64955.0,64954.0,0.68312336]
[1721275180216,0.14473,64955.0,64954.0,0.55526761]
[1721275180425,0.14473,64955.0,64954.0,0.68312391]
[1721275183414,0.14473,64955.0,64954.0,0.68403691]
[1721275183649,0.14473,64955.0,64954.0,0.68403692]
[1721275183999,0.14473,64955.0,64954.0,0.68403665]
[1721275185358,0.00083,64955.0,64954.0,1.04194665]
[1721275185563,0.00083,64955.0,64954.0,0.99194665]
[1721275186899,0.00083,64955.0,64954.0,0.99194638]
[1721275187218,0.06723,64955.0,64954.0,0.99194638]
[1721275187674,0.14383,64955.0,64954.0,0.68403638]
[1721275190153,0.14383,64955.0,64954.0,0.55618061]
[1721275190446,0.14383,64955.0,64954.0,0.68403665]
[1721275193748,0.14383,64955.0,64954.0,0.55618061]
[1721275193951,0.14383,64955.0,64954.0,0.68403665]
[1721275194483,0.297782,64955.0,64954.0,0.15217165]
[1721275194683,0.34401049,64955.0,64954.0,0.02431561]
[1721275194852,0.297782,64955.0,64954.0,0.021913]
[1721275196293,1.221497,64955.0,64954.0,0.021913]
[1721275196519,0.913592,64955.0,64954.0,0.021913]
[1721275196873,0.92540179,64955.0,64954.0,0.021913]
[1721275197284,1.02908515,64955.0,64954.0,0.021913]
[1721275198016,1.02908515,64955.0,64954.0,0.011913]
[1721275198216,1.02908515,64955.0,64954.0,0.000913]
[1721275198428,0.913592,64955.0,64954.0,0.000913]
[1721275198637,0.914592,64955.0,64954.0,0.000913]
[1721275199048,0.913592,64955.0,64954.0,0.000913]
[1721275199424,1.00694634,64955.0,64954.0,0.001913]
[1721275199668,1.00594634,64955.0,64954.0,0.001913]
[1721275200088,1.00594634,64955.0,64954.0,0.002913]
[1721275200449,0.6518608,64955.0,64954.0,0.002913]
[1721275200803,0.297782,64955.0,64954.0,0.002913]
[1721275201009,0.14383,64955.0,64954.0,0.002913]
[1721275201234,0.14383,64955.0,64954.0,0.464778]
[1721275201235,0.07743,64955.0,64954.0,0.464778]
[1721275201438,0.00083,64955.0,64954.0,0.156868]
[1721275201612,0.00083,64955.0,64954.0,0.002913]
[1721275201997,0.14693,64955.0,64954.0,0.002913]
[1721275202201,0.14693,64955.0,64954.0,0.155868]
[1721275202766,0.14693,64955.0,64954.0,0.156868]
[1721275203098,0.14693,64955.0,64954.0,0.001913]
[1721275203303,0.300882,64955.0,64954.0,0.001913]
[1721275203509,0.300882,64955.0,64954.0,0.020913]
[1721275203683,0.14693,64955.0,64954.0,0.020913]
[1721275204923,0.14693,64955.0,64954.0,0.090913]
[1721275206783,0.00083,64955.0,64954.0,0.090913]
[1721275208053,0.00083,64955.0,64954.0,0.860688]
[1721275208279,0.00083,64955.0,64954.0,0.552778]
[1721275215853,0.00083,64955.0,64954.0,0.860688]
[1721275216138,0.00083,64955.0,64954.0,1.64572959]
[1721275216609,0.00083,64955.0,64954.0,1.59572959]
[1721275216851,0.00036814,64955.0,64954.0,1.63572959]
[1721275217064,0.00036814,64955.0,64954.0,1.58572959]
[1721275217263,0.00036814,64955.0,64954.0,1.57572959]
[1721275217392,0.00036814,64955.0,64954.0,1.6422137]
[1721275217776,0.00036814,64955.0,64954.0,1.64220688]
[1721275218199,0.00036814,64955.0,64954.0,1.65120688]
[1721275218637,0.00036814,64955.0,64954.0,1.64220688]
[1721275219072,0.00036814,64955.0,64954.0,1.65620688]
[1721275221818,0.00036814,64955.0,64954.0,1.65620531]
[1721275222368,0.14306814,64955.0,64954.0,1.08339531]
[1721275222578,0.14306814,64955.0,64954.0,0.56326211]
[1721275222780,0.07646814,64955.0,64954.0,0.56326211]
[1721275222982,0.07646814,64955.0,64954.0,0.87117211]
[1721275224242,0.07646814,64955.0,64954.0,0.85717211]
[1721275224656,0.07646814,64955.0,64954.0,0.88517211]
[1721275225080,0.07646814,64955.0,64954.0,0.56326211]
[1721275225501,0.07646814,64955.0,64954.0,0.57726211]
[1721275226857,0.00036814,64955.0,64954.0,0.88517211]
[1721275228580,0.00036814,64955.0,64954.0,1.01302437]
[1721275229001,0.00036814,64955.0,64954.0,0.88517211]
[1721275229221,0.00036814,64955.0,64954.0,1.01302501]
[1721275231528,0.00036814,64955.0,64954.0,1.01302505]
[1721275231763,0.00036814,64955.0,64954.0,0.70511505]
[1721275231970,0.14326814,64955.0,64954.0,0.70511505]
[1721275232312,0.14326814,64955.0,64954.0,0.70511665]
[1721275232458,0.14326814,64955.0,64954.0,0.57726211]
[1721275234449,0.14326814,64955.0,64954.0,0.70511616]
[1721275237477,0.14326814,64955.0,64954.0,0.70511589]
[1721275239006,0.00036814,64955.0,64954.0,0.70511589]
[1721275239202,0.00036814,64955.0,64954.0,1.01302589]
[1721275240454,0.14526814,64955.0,64954.0,0.70511589]
[1721275240658,0.14526814,64955.0,64954.0,0.70511768]
[1721275241040,0.14526814,64955.0,64954.0,0.17325325]
[1721275241216,0.14526814,64955.0,64954.0,0.04539711]
[1721275241217,0.29922014,64955.0,64954.0,0.04539711]
[1721275241616,0.60712514,64955.0,64954.0,0.04539711]
[1721275242021,0.60712514,64955.0,64954.0,0.03139711]
[1721275242486,0.60712514,64955.0,64954.0,0.007913]
[1721275242868,0.60712514,64955.0,64954.0,0.012913]
[1721275243222,0.60712514,64955.0,64954.0,0.007913]
[1721275243425,0.60712514,64955.0,64954.0,0.012913]
[1721275243592,0.60712514,64955.0,64954.0,0.000913]
[1721275243593,0.91503014,64955.0,64954.0,0.000913]
[1721275243796,0.96118233,64955.0,64954.0,0.000913]
[1721275243998,0.96118233,64955.0,64954.0,0.012913]
[1721275243999,0.91503014,64955.0,64954.0,0.012913]
[1721275244402,0.91503014,64955.0,64954.0,0.007913]
[1721275244822,0.91503014,64955.0,64954.0,0.014863]
[1721275245160,0.91503014,64955.0,64954.0,0.007863]
[1721275245360,0.96118233,64955.0,64954.0,0.007863]
[1721275245562,0.29922014,64955.0,64954.0,0.000863]
[1721275246187,0.29922014,64955.0,64954.0,0.001863]
[1721275246390,0.29922014,64955.0,64954.0,0.002863]
[1721275246596,0.60712514,64955.0,64954.0,0.001863]
[1721275247009,0.60712514,64955.0,64954.0,0.008863]
[1721275247414,0.60712514,64955.0,64954.0,0.007863]
[1721275247831,0.65328343,64955.0,64954.0,0.011863]
[1721275248457,0.65328343,64955.0,64954.0,0.007863]
[1721275248458,0.60712514,64955.0,64954.0,0.007863]
[1721275248614,0.60712514,64955.0,64954.0,0.014863]
[1721275251229,0.29922014,64955.0,64954.0,0.014863]
[1721275251784,0.29922014,64955.0,64954.0,0.01717157]
[1721275255648,0.60712514,64955.0,64954.0,0.01717157]
[1721275256258,0.91503014,64955.0,64954.0,0.01717157]
[1721275256641,1.01815255,64955.0,64954.0,0.014863]
[1721275257227,1.06429288,64955.0,64954.0,0.014863]
[1721275257970,0.96117047,64955.0,64954.0,0.014863]
[1721275258143,0.91503014,64955.0,64954.0,0.014863]
[1721275260334,1.44651681,64955.0,64954.0,0.014863]
[1721275260681,1.39224808,64955.0,64954.0,0.014863]
[1721275261640,1.48450248,64955.0,64954.0,0.014863]
[1721275261890,1.48450093,64955.0,64954.0,0.014863]
[1721275262065,1.48450162,64955.0,64954.0,0.014863]
[1721275262288,1.55512801,64955.0,64954.0,0.014863]
[1721275262974,1.46287447,64955.0,64954.0,0.014863]
[1721275263406,1.55511066,64955.0,64954.0,0.014863]
[1721275263936,1.64766066,64955.0,64954.0,0.014863]
[1721275264106,1.70977404,64955.0,64954.0,0.014863]
[1721275264517,1.55542447,64955.0,64954.0,0.014863]
[1721275264933,1.077849,64944.0,64943.0,0.466]
[1721275265121,1.46137946,64944.0,64943.0,0.466]
[1721275265335,1.57667694,64944.0,64943.0,0.466]
[1721275265549,1.46139154,64944.0,64943.0,0.466]
[1721275265716,1.46139154,64944.0,64929.0,1.276913]
[1721275265717,0.462036,64930.0,64929.0,1.276913]
[1721275265919,0.462036,64930.0,64929.0,0.000913]
[1721275265920,0.604036,64930.0,64929.0,0.000913]
[1721275266904,0.91206,64930.0,64929.0,0.000913]
[1721275267127,0.604036,64930.0,64929.0,0.000913]
[1721275267506,0.604036,64930.0,64929.0,0.004913]
[1721275268074,0.604036,64930.0,64929.0,0.000913]
[1721275268400,0.91206,64930.0,64929.0,0.004913]
[1721275268599,0.91206,64930.0,64929.0,0.007913]
[1721275268726,1.003266,64930.0,64929.0,0.004913]
[1721275269135,1.003266,64930.0,64929.0,0.007913]
[1721275269726,0.91206,64930.0,64929.0,0.007913]
[1721275270140,0.91206,64930.0,64929.0,0.003913]
[1721275270351,0.91206,64930.0,64929.0,0.000913]
[1721275271113,0.91306,64930.0,64929.0,0.000913]
[1721275271731,0.91206,64930.0,64929.0,0.000913]
[1721275271930,0.93699115,64930.0,64929.0,0.000913]
[1721275272117,0.93499115,64930.0,64929.0,0.000913]
[1721275272513,0.93699115,64930.0,64929.0,0.000913]
[1721275272719,0.93899115,64930.0,64929.0,0.000913]
[1721275273254,0.91606,64930.0,64929.0,0.000913]
[1721275273617,0.608036,64930.0,64929.0,0.000913]
[1721275273869,0.541636,64930.0,64929.0,0.000913]
[1721275274451,0.002,64930.0,64929.0,0.000913]
[1721275274655,0.001,64930.0,64929.0,0.000913]
[1721275274858,0.001,64930.0,64929.0,0.00311754]
[1721275275065,0.002,64930.0,64929.0,0.00311754]
[1721275275624,0.003,64930.0,64929.0,0.00311754]
[1721275275840,0.001,64930.0,64929.0,0.00311754]
[1721275276043,0.154008,64932.0,64929.0,0.00411754]
[1721275276246,0.154008,64932.0,64929.0,0.00511754]
[1721275276765,0.15401,64931.0,64929.0,0.00511754]
[1721275276974,0.154012,64930.0,64929.0,0.00511754]
[1721275277204,0.3491032,64930.0,64929.0,0.00511754]
[1721275277407,0.91076,64930.0,64929.0,0.001913]
[1721275277632,0.91076,64930.0,64929.0,0.000913]
[1721275277841,1.218784,64930.0,64929.0,0.000913]
[1721275278244,1.37313357,64930.0,64929.0,0.000913]
[1721275278461,1.225784,64930.0,64929.0,0.001913]
[1721275278670,1.227784,64930.0,64929.0,0.001913]
[1721275278878,1.220784,64930.0,64929.0,0.000913]
[1721275279099,1.225784,64930.0,64929.0,0.001913]
[1721275279505,1.227784,64930.0,64929.0,0.001913]
[1721275280972,1.38213357,64930.0,64929.0,0.001913]
[1721275281333,1.227784,64930.0,64929.0,0.001913]
[1721275281542,0.91976,64930.0,64929.0,0.001913]
[1721275282324,0.551436,64930.0,64929.0,0.001913]
[1721275285474,0.85946,64930.0,64929.0,0.001913]
[1721275286593,0.92186,64930.0,64929.0,0.001913]
[1721275286713,1.0448464,64930.0,64929.0,0.001913]
[1721275287651,1.3528704,64930.0,64929.0,0.001913]
[1721275293479,1.229884,64930.0,64929.0,0.001863]
[1721275294294,1.24219368,64930.0,64929.0,0.001863]
[1721275295092,1.229884,64930.0,64929.0,0.001863]
[1721275295293,1.24217363,64930.0,64929.0,0.001863]
[1721275297856,1.97232937,64930.0,64929.0,0.001863]
[1721275298028,2.12667894,64930.0,64929.0,0.001863]
[1721275298450,2.12705988,64930.0,64929.0,0.001863]
[1721275299034,1.95185988,64930.0,64929.0,0.001863]